bitfinex/quotes_SOLUSD_20240727
["timestamp","ask_amount","ask_price","bid_price","bid_amount"]
[1722095041388,5.4761,182.61,182.57,13.693]
[1722095041600,5.4762,182.61,182.57,13.693]
[1722095041798,5.4762,182.61,182.55,5.4777]
[1722095042106,5.4765,182.6,182.55,5.4777]
[1722095042480,5.476,182.62,182.54,29.0842]
[1722095042684,0.17,182.65,182.54,29.0842]
[1722095042887,45.17,182.65,182.56,5.4773]
[1722095043298,5.4762,182.61,182.56,5.4773]
[1722095043491,5.4758,182.62,182.56,5.4773]
[1722095043686,5.4756,182.63,182.56,13.6935]
[1722095043888,5.6452,182.65,182.59,13.6915]
[1722095044308,5.6452,182.65,182.54,15.3888]
[1722095044309,0.17,182.65,182.58,5.4769]
[1722095044486,0.17,182.65,182.54,15.3888]
[1722095044812,22.0929,182.71,182.56,25.9]
[1722095045112,5.4745,182.67,182.62,13.6894]
[1722095045309,5.4749,182.65,182.6,5.4764]
[1722095046001,0.17,182.66,182.62,5.4758]
[1722095046207,22.0929,182.71,182.63,5.4755]
[1722095046208,5.4741,182.68,182.63,5.4755]
[1722095046412,0.17,182.67,182.63,5.4755]
[1722095046710,5.6443,182.67,182.62,5.4757]
[1722095047016,8.5886263,182.72,182.63,13.6888]
[1722095047380,5.4732,182.71,182.66,5.4743]
[1722095047587,8.5886263,182.72,182.67,5.4742]
[1722095047895,14.0615263,182.72,182.65,13.6868]
[1722095048484,5.4731,182.71,182.65,13.6868]
[1722095048906,14.0614263,182.72,182.67,5.4742]
[1722095050108,8.5886263,182.72,182.65,13.6868]
[1722095050287,8.5886263,182.72,182.69,5.4737]
[1722095050694,8.5886263,182.72,182.7,5.4733]
[1722095051484,8.5886263,182.72,182.67,13.6852]
[1722095051715,8.5886263,182.72,182.67,19.1592]
[1722095052088,8.5886263,182.72,182.63,13.6882]
[1722095052297,8.5886263,182.72,182.64,5.4752]
[1722095052604,5.4743,182.68,182.63,13.6882]
[1722095052838,5.4747,182.66,182.61,5.476]
[1722095053314,5.4751,182.65,182.6,5.4763]
[1722095053497,20.3996,182.71,182.54,41.0429]
[1722095053700,45.0,182.7,182.54,41.0429]
[1722095054007,5.4752,182.64,182.6,13.6911]
[1722095054190,5.4748,182.66,182.61,5.4759]
[1722095054387,0.17,182.69,182.61,5.4759]
[1722095054388,5.4743,182.67,182.61,5.4759]
[1722095055010,5.6447,182.66,182.61,5.4759]
[1722095055212,5.4743,182.67,182.62,5.4758]
[1722095056500,14.0615263,182.72,182.67,5.4743]
[1722095056701,14.0615263,182.72,182.64,13.6878]
[1722095056702,5.4732,182.71,182.65,5.4746]
[1722095056912,5.4735,182.7,182.65,5.4746]
[1722095057116,8.5886263,182.72,182.61,13.6902]
[1722095057301,5.4743,182.68,182.63,5.4755]
[1722095057606,5.4744,182.67,182.62,5.4758]
[1722095057809,5.474,182.68,182.63,5.4755]
[1722095058183,5.6438,182.69,182.64,5.4752]
[1722095058816,5.4744,182.67,182.62,5.4757]
[1722095059385,5.4747,182.66,182.61,19.1662]
[1722095059997,5.4743,182.67,182.62,5.4757]
[1722095060604,5.6447,182.66,182.61,13.6902]
[1722095060787,0.17,182.66,182.61,13.6902]
[1722095060989,0.17,182.66,182.62,5.4755]
[1722095061720,5.6446,182.66,182.61,19.1662]
[1722095062704,5.6446,182.66,182.62,5.4758]
[1722095062904,5.4742,182.68,182.62,5.4758]
[1722095063096,0.17,182.67,182.63,5.4754]
[1722095063295,22.2713263,182.72,182.64,5.4752]
[1722095063504,5.4743,182.67,182.63,13.6884]
[1722095064922,0.17,182.71,182.63,13.6884]
[1722095065111,7.0886263,182.72,182.66,13.6865]
[1722095065312,5.4733,182.71,182.66,19.161]
[1722095065513,7.0886263,182.72,182.63,13.6886]
[1722095065708,5.4741,182.68,182.63,13.6886]
[1722095066021,5.4741,182.68,182.63,19.164]
[1722095066819,5.4741,182.68,182.63,13.6886]
[1722095067416,5.4744,182.67,182.63,13.6886]
[1722095067923,5.4744,182.67,182.6,25.9]
[1722095067924,7.0886263,182.72,182.64,1.09497245]
[1722095068120,7.0886263,182.72,182.54,31.5829]
[1722095068121,22.378,182.76,182.65,1.0947638]
[1722095068513,5.4725,182.73,182.65,1.0947638]
[1722095068827,5.4723,182.74,182.65,1.0947638]
[1722095069022,22.378,182.76,182.63,25.9]
[1722095069227,5.4732,182.71,182.63,25.9]
[1722095069413,5.4728,182.73,182.67,5.4742]
[1722095069615,5.4729,182.72,182.67,5.4742]
[1722095070530,5.4732,182.71,182.66,5.4745]
[1722095070907,5.4736,182.7,182.65,19.1621]
[1722095071107,13.6805,182.75,182.65,19.1621]
[1722095071108,5.4737,182.69,182.65,13.6873]
[1722095071808,0.17,182.71,182.62,15.8929]
[1722095071809,5.4741,182.68,182.63,5.4754]
[1722095072006,6.4388827,182.67,182.62,5.4757]
[1722095072422,6.4388827,182.67,182.63,5.4755]
[1722095072612,0.9644827,182.67,182.63,5.4755]
[1722095073014,6.4387827,182.67,182.63,5.4755]
[1722095073628,6.4387827,182.67,182.62,19.1653]
[1722095074717,0.9644827,182.64,182.62,19.1653]
[1722095076618,0.9644827,182.64,182.57,41.7929]
[1722095076928,0.9644827,182.64,182.61,5.476]
[1722095077521,0.9644827,182.63,182.61,5.476]
[1722095080022,0.9644827,182.63,182.62,5.4758]
[1722095080335,5.4744,182.67,182.62,5.4758]
[1722095080527,5.71984549,182.7,182.6,5.4762]
[1722095080840,6.4002,182.67,182.56,13.694]
[1722095081046,5.4764,182.6,182.56,13.694]
[1722095081214,5.4761,182.61,182.56,19.1715]
[1722095081940,5.4761,182.61,182.57,5.4773]
[1722095082825,5.4759,182.62,182.57,5.4773]
[1722095083143,5.4764,182.6,182.55,5.4778]
[1722095083433,13.6883,182.64,182.53,35.0676]
[1722095083612,6.4416827,182.58,182.53,35.0676]
[1722095083814,6.4416827,182.58,182.54,5.4782]
[1722095084235,0.9644827,182.58,182.54,5.4782]
[1722095084423,0.9644827,182.58,182.55,5.4778]
[1722095085011,0.9644827,182.58,182.55,13.6942]
[1722095085214,0.9644827,182.58,182.56,5.4773]
[1722095085616,0.9644827,182.58,182.55,19.1721]
[1722095086241,5.4761,182.61,182.57,5.4773]
[1722095086437,5.4759,182.62,182.57,5.4773]
[1722095086738,5.4761,182.61,182.56,6.57294298]
[1722095086946,5.4759,182.62,182.57,5.4773]
[1722095087142,5.4761,182.61,182.56,6.57294298]
[1722095088144,5.4761,182.61,182.56,5.4775]
[1722095088522,0.9644827,182.57,182.56,5.4775]
[1722095089425,0.9644827,182.57,182.55,13.6942]
[1722095089624,0.9644827,182.57,182.54,5.478]
[1722095089831,0.9644827,182.57,182.53,15.8929]
[1722095090950,0.9644827,182.57,182.54,5.4781]
[1722095092031,0.9644827,182.57,182.53,5.4784]
[1722095092337,0.9644827,182.57,182.54,5.4782]
[1722095092540,0.9644827,182.54,182.53,5.4784]
[1722095092844,0.9644827,182.54,182.52,19.1757]
[1722095093325,0.9644827,182.54,182.52,13.6969]
[1722095094226,0.9644827,182.54,182.53,5.4785]
[1722095095046,5.4767,182.59,182.53,5.4785]
[1722095095271,5.4767,182.59,182.54,5.4781]
[1722095095428,5.476,182.62,182.54,13.6951]
[1722095095620,5.476,182.62,182.5,1.09537195]
[1722095095841,5.4761,182.61,182.51,0.17]
[1722095096041,5.4761,182.61,182.56,5.4774]
[1722095096428,5.4761,182.61,182.56,19.171]
[1722095097038,5.4759,182.62,182.57,5.4772]
[1722095097355,5.4759,182.62,182.58,5.4769]
[1722095097723,5.72047912,182.64,182.53,6.57366816]
[1722095097724,22.0614,182.6,182.53,6.57366816]
[1722095097926,22.0614,182.6,182.49,0.7787313]
[1722095097927,5.4778,182.56,182.51,5.4789]
[1722095098333,5.4773,182.57,182.52,14.79233855]
[1722095098644,5.4773,182.57,182.49,0.7787313]
[1722095098645,13.6948,182.56,182.49,0.7787313]
[1722095098951,5.4788,182.53,182.49,0.7787313]
[1722095099834,5.4788,182.53,182.49,6.2584313]
[1722095100032,5.4783,182.54,182.49,6.2584313]
[1722095100651,0.17,182.53,182.49,6.2584313]
[1722095100845,0.17,182.53,182.49,0.7787313]
[1722095101349,0.17,182.53,182.49,6.2583313]
[1722095101955,0.17,182.53,182.49,0.7787313]
[1722095102327,5.4789,182.52,182.49,0.7787313]
[1722095102547,20.0,182.56,182.49,0.7787313]
[1722095102775,0.17,182.55,182.5,13.698]
[1722095103060,5.4782,182.54,182.49,0.7787313]
[1722095103269,5.71315991,182.57,182.49,6.2581313]
[1722095103553,5.71315991,182.57,182.5,1.09586451]
[1722095103733,5.71315991,182.57,182.53,5.4784]
[1722095103933,5.71315991,182.57,182.5,1.09586451]
[1722095103934,22.0614,182.6,182.52,13.6964]
[1722095104139,33.24919321,182.6,182.54,5.478]
[1722095104347,27.77249321,182.6,182.52,13.6964]
[1722095105359,5.4767,182.59,182.54,5.4781]
[1722095105532,5.71109321,182.6,182.55,13.6945]
[1722095105733,5.4758,182.62,182.57,5.4773]
[1722095105934,5.4762,182.61,182.56,5.4775]
[1722095106249,6.05,182.64,182.55,13.6945]
[1722095106930,13.6946,182.56,182.44,1.09542547]
[1722095107136,25.9,182.57,182.45,15.0384]
[1722095107339,5.4779,182.55,182.45,15.0384]
[1722095107540,0.9644827,182.57,182.46,1.09583348]
[1722095107747,0.9644827,182.57,182.45,15.0384]
[1722095107748,5.4785,182.53,182.45,15.0384]
[1722095108148,5.4785,182.53,182.45,16.13423654]
[1722095108358,5.4776,182.56,182.46,1.09583286]
[1722095108544,0.9644827,182.57,182.47,1.09568624]
[1722095108545,5.478,182.55,182.47,1.09568624]
[1722095108747,1.1344827,182.57,182.46,1.09571921]
[1722095108930,5.4779,182.55,182.46,1.09576756]
[1722095109343,5.6476,182.56,182.46,1.09576756]
[1722095109559,5.478,182.55,182.46,1.09576756]
[1722095110435,0.9644827,182.57,182.5,1.09573727]
[1722095111051,0.9644827,182.57,182.5,1.09552217]
[1722095111455,0.9644827,182.57,182.5,16.0368]
[1722095111757,5.4774,182.57,182.5,16.0368]
[1722095112133,13.6904,182.61,182.5,16.0368]
[1722095112134,5.477,182.58,182.5,16.0368]
[1722095112334,5.4761,182.61,182.51,45.0]
[1722095112544,5.4767,182.6,182.51,45.0]
[1722095113463,0.96374708,182.52,182.51,45.0]
[1722095113659,0.96374708,182.52,182.5,41.9368]
[1722095113846,0.96374708,182.52,182.51,45.0]
[1722095114171,0.96374708,182.52,182.5,16.0368]
[1722095115667,0.96374708,182.52,182.49,0.7787313]
[1722095116448,0.96374708,182.51,182.49,0.7787313]
[1722095119068,0.96374708,182.5,182.49,0.7787313]
[1722095124366,1.13374708,182.5,182.49,0.7787313]
[1722095124581,0.96374708,182.5,182.49,0.7787313]
[1722095126049,1.13374708,182.5,182.49,0.7787313]
[1722095126464,6.61314708,182.5,182.49,0.7787313]
[1722095126669,51.61314708,182.5,182.49,0.7787313]
[1722095127982,6.61314708,182.5,182.49,0.7787313]
[1722095128873,15.21199516,182.5,182.49,0.7787313]
[1722095129552,60.21199516,182.5,182.49,0.7787313]
[1722095131968,15.21199516,182.5,182.49,0.7787313]
[1722095132351,60.21199516,182.5,182.49,0.7787313]
[1722095132551,15.04199516,182.5,182.49,0.7787313]
[1722095133156,9.56259516,182.5,182.49,0.7787313]
[1722095134162,15.04199516,182.5,182.49,0.7787313]
[1722095135067,60.21199516,182.5,182.49,0.7787313]
[1722095136060,15.21199516,182.5,182.49,0.7787313]
[1722095136470,60.21199516,182.5,182.49,0.7787313]
[1722095137175,15.21199516,182.5,182.49,0.7787313]
[1722095137559,60.21199516,182.5,182.49,0.7787313]
[1722095138088,15.21199516,182.5,182.49,0.7787313]
[1722095139576,28.91059516,182.5,182.49,0.7787313]
[1722095139763,73.91059516,182.5,182.49,0.7787313]
[1722095140499,13.701,182.47,182.36,6.2674]
[1722095140783,45.0,182.46,182.37,15.3327]
[1722095140984,5.4814,182.44,182.37,15.3327]
[1722095141486,5.6517,182.43,182.37,15.3327]
[1722095141779,5.4818,182.42,182.37,15.3327]
[1722095142169,5.6515,182.43,182.37,15.3327]
[1722095144069,5.4818,182.42,182.37,15.3327]
[1722095144376,5.71338626,182.46,182.37,15.3327]
[1722095144576,45.17,182.45,182.37,15.3327]
[1722095144959,5.4818,182.43,182.37,15.3327]
[1722095145259,5.4818,182.42,182.37,15.3327]
[1722095145457,0.96374708,182.38,182.37,15.3327]
[1722095147361,0.96374708,182.38,182.32,21.7162]
[1722095150261,7.74846374,182.46,182.32,21.7162]
[1722095150262,0.96374708,182.33,182.32,21.7162]
[1722095151180,0.96374708,182.33,182.32,34.7362]
[1722095151695,0.96374708,182.33,182.32,15.3327]
[1722095151993,0.96374708,182.33,182.32,28.3527]
[1722095153069,0.96374708,182.33,182.31,0.7787313]
[1722095155478,0.96374708,182.32,182.31,0.7787313]
[1722095157194,0.96374708,182.32,182.2,1.09696911]
[1722095157195,5.4887,182.19,182.13,0.7787313]
[1722095157362,5.4902,182.14,182.13,0.7787313]
[1722095157564,20.0,182.23,182.13,0.7787313]
[1722095157565,33.7194,182.23,182.13,0.7787313]
[1722095157890,5.4865,182.27,182.14,6.2717]
[1722095158065,26.05,182.3,182.14,6.2717]
[1722095158066,0.17,182.26,182.14,6.2717]
[1722095158261,26.22,182.26,182.13,0.7787313]
[1722095158461,5.4877,182.23,182.13,0.7787313]
[1722095158658,5.4866,182.26,182.13,0.7787313]
[1722095158858,50.657,182.25,182.13,0.7787313]
[1722095159063,0.17,182.25,182.13,0.7787313]
[1722095159574,45.0,182.26,182.13,0.7787313]
[1722095159887,0.17,182.25,182.13,0.7787313]
[1722095160659,0.17,182.25,182.13,45.7787313]
[1722095160865,0.17,182.25,182.13,0.7787313]
[1722095161564,15.168,182.35,182.18,26.05]
[1722095161769,26.534,182.34,182.18,32.3217]
[1722095161996,5.70669599,182.33,182.18,48.258]
[1722095162365,43.78010384,182.4,182.24,26.05]
[1722095162578,21.9228,182.39,182.24,26.05]
[1722095162813,21.9228,182.39,182.18,22.208]
[1722095162814,36.44,182.36,182.18,22.208]
[1722095163097,16.44,182.35,182.2,26.05]
[1722095163597,36.44,182.37,182.2,26.05]
[1722095163769,16.44,182.36,182.2,26.05]
[1722095163969,20.0,182.33,182.18,22.208]
[1722095164191,45.0,182.35,182.2,26.05]
[1722095164485,45.0,182.36,182.21,26.05]
[1722095164698,22.1474895,182.39,182.24,26.05]
[1722095164999,11.1902895,182.39,182.24,26.05]
[1722095165281,5.7074895,182.39,182.27,26.05]
[1722095165861,5.7074895,182.39,182.3,26.05]
[1722095166062,5.4827,182.39,182.28,22.208]
[1722095166289,5.4824,182.4,182.28,22.208]
[1722095166491,5.483,182.38,182.28,22.208]
[1722095166691,5.4827,182.39,182.28,22.208]
[1722095166900,5.7056742,182.42,182.28,22.208]
[1722095167878,5.4824,182.4,182.28,22.208]
[1722095168074,11.1877742,182.42,182.28,22.208]
[1722095168274,5.7056742,182.42,182.3,26.05]
[1722095168473,5.7056742,182.42,182.28,22.208]
[1722095168801,5.4827,182.39,182.28,22.208]
[1722095168974,5.483,182.38,182.28,22.208]
[1722095169704,0.17,182.37,182.28,22.208]
[1722095169990,5.4842,182.34,182.23,47.6958]
[1722095170171,5.4839,182.35,182.23,47.6958]
[1722095170372,61.44,182.37,182.23,47.6958]
[1722095170373,5.6543,182.34,182.23,47.6958]
[1722095170597,45.0,182.33,182.23,47.6958]
[1722095170895,5.4865,182.27,182.23,15.4077]
[1722095171076,5.4859,182.29,182.23,15.4077]
[1722095171272,5.487,182.25,182.18,6.2381]
[1722095171599,0.17,182.24,182.15,15.4077]
[1722095172401,45.17,182.24,182.15,15.4077]
[1722095172898,5.4877,182.23,182.15,15.4077]
[1722095173104,5.4879,182.22,182.15,15.4077]
[1722095173272,0.17,182.21,182.13,0.7787313]
[1722095173674,5.6582,182.21,182.13,0.7787313]
[1722095173879,0.17,182.21,182.13,0.7787313]
[1722095174082,50.6582,182.21,182.13,0.7787313]
[1722095174283,25.4887,182.2,182.13,0.7787313]
[1722095174483,50.4888,182.19,182.13,0.7787313]
[1722095174701,13.7181,182.25,182.13,0.7787313]
[1722095174702,0.17,182.18,182.13,0.7787313]
[1722095175378,2.11407272,182.25,182.13,26.8287313]
[1722095175702,20.0,182.26,182.13,26.8287313]
[1722095176197,41.9263,182.28,182.13,26.8287313]
[1722095176387,20.0,182.28,182.13,26.8287313]
[1722095176583,32.1024,182.34,182.13,26.8287313]
[1722095176584,5.69996706,182.29,182.16,26.05]
[1722095177096,5.69996706,182.29,182.13,1.87640657]
[1722095177097,5.69996706,182.29,182.19,26.05]
[1722095177891,11.18576706,182.29,182.19,26.05]
[1722095178093,11.18576706,182.29,182.13,0.7787313]
[1722095178094,19.41436706,182.29,182.13,0.7787313]
[1722095178297,16.44,182.27,182.15,26.05]
[1722095178598,5.4863,182.28,182.15,26.05]
[1722095178778,25.4862,182.28,182.15,26.05]
[1722095178981,45.17,182.27,182.15,26.05]
[1722095179489,50.6563,182.27,182.15,26.05]
[1722095179688,5.4866,182.26,182.15,26.05]
[1722095179888,5.6569,182.25,182.15,26.05]
[1722095180204,5.657,182.25,182.14,26.05]
[1722095180393,22.097,182.25,182.14,26.05]
[1722095180710,45.0,182.24,182.14,26.05]
[1722095181001,45.0,182.24,182.13,0.7787313]
[1722095181002,0.17,182.23,182.13,0.7787313]
[1722095181201,0.17,182.23,182.15,26.05]
[1722095181505,5.69996706,182.29,182.15,26.05]
[1722095182102,16.44,182.27,182.15,26.05]
[1722095182303,21.9269,182.25,182.15,26.05]
[1722095182507,5.4878,182.23,182.13,0.7787313]
[1722095183001,65.0,182.22,182.13,0.7787313]
[1722095183299,61.44,182.22,182.13,0.7787313]
[1722095183500,0.17,182.21,182.13,0.7787313]
[1722095183809,16.44,182.2,182.13,0.7787313]
[1722095184110,45.0,182.19,182.13,0.7787313]
[1722095184299,0.17,182.18,182.13,0.7787313]
[1722095184608,16.44,182.17,182.13,0.7787313]
[1722095184992,0.17,182.16,182.13,0.7787313]
[1722095186501,16.44,182.18,182.13,0.7787313]
[1722095186502,50.4894,182.17,182.13,0.7787313]
[1722095186709,5.6597,182.16,182.13,0.7787313]
[1722095186888,5.49,182.15,182.13,0.7787313]
[1722095187204,16.44,182.18,182.13,0.7787313]
[1722095187517,0.17,182.17,182.13,0.7787313]
[1722095187698,16.44,182.16,182.13,0.7787313]
[1722095187889,0.17,182.15,182.13,0.7787313]
[1722095188090,5.4902,182.14,182.13,0.7787313]
[1722095188307,66.9302,182.14,182.13,0.7787313]
[1722095188506,67.1002,182.14,182.13,0.7787313]
[1722095189197,75.71484332,182.14,182.13,0.7787313]
[1722095189581,70.22464332,182.14,182.13,0.7787313]
[1722095190022,75.71484332,182.14,182.13,0.7787313]
[1722095190527,5.4912,182.11,182.0,0.05288]
[1722095190820,59.10494332,182.14,182.0,26.10288]
[1722095190981,8.61464332,182.14,182.04,6.2505]
[1722095191407,20.0,182.11,182.01,15.0151]
[1722095191709,36.44,182.11,182.01,15.0151]
[1722095191893,8.61464332,182.14,182.01,41.0651]
[1722095192281,0.17,182.13,182.01,15.0151]
[1722095192486,8.61464332,182.14,182.06,26.05]
[1722095193208,8.61464332,182.14,182.04,6.2505]
[1722095193209,5.4915,182.1,182.0,0.05288]
[1722095193404,5.4913,182.11,182.0,0.05288]
[1722095193592,5.4916,182.1,182.0,0.05288]
[1722095193788,36.44,182.13,182.0,0.05288]
[1722095193986,20.0,182.13,182.0,0.05288]
[1722095194295,8.61464332,182.14,182.02,26.05]
[1722095194495,0.17,182.13,182.03,21.2656]
[1722095194696,5.4911,182.12,182.03,21.2656]
[1722095195014,14.10494332,182.14,182.03,21.2656]
[1722095195213,0.17,182.13,182.03,21.2656]
[1722095195510,20.0,182.12,182.03,21.2656]
[1722095195707,14.10494332,182.14,182.03,21.2656]
[1722095195898,8.61464332,182.14,182.03,21.2656]
[1722095196100,25.05464332,182.14,182.03,21.2656]
[1722095196290,0.17,182.13,182.03,21.2656]
[1722095196717,8.61464332,182.14,182.03,21.2656]
[1722095196892,5.4906,182.13,182.03,21.2656]
[1722095197095,5.4912,182.11,182.03,21.2656]
[1722095197313,0.17,182.12,182.03,21.2656]
[1722095197513,5.6609,182.12,182.03,21.2656]
[1722095197837,0.17,182.12,182.03,21.2656]
[1722095197997,5.6611,182.12,182.03,21.2656]
[1722095198194,50.4912,182.11,182.03,21.2656]
[1722095198397,5.4918,182.09,182.03,21.2656]
[1722095198621,5.4914,182.11,182.03,21.2656]
[1722095198792,50.6616,182.1,182.03,21.2656]
[1722095199095,5.4911,182.12,182.03,21.2656]
[1722095199291,0.17,182.11,182.03,21.2656]
[1722095199888,5.4906,182.13,182.03,21.2656]
[1722095200205,0.17,182.12,182.03,21.2656]
[1722095200408,5.4914,182.1,182.03,21.2656]
[1722095200724,20.0,182.12,182.03,21.2656]
[1722095200896,5.492,182.09,182.03,21.2656]
[1722095201406,5.4927,182.06,182.0,0.05288]
[1722095201613,0.17,182.07,182.0,0.05288]
[1722095201917,45.0,182.09,182.0,0.05288]
[1722095202121,5.4917,182.1,182.0,0.05288]
[1722095202424,5.4921,182.08,182.0,0.05288]
[1722095202621,45.0,182.09,182.0,0.05288]
[1722095202800,0.17,182.08,182.0,0.05288]
[1722095203202,5.4924,182.07,182.0,0.05288]
[1722095203722,5.4915,182.1,182.01,26.05]
[1722095204025,0.17,182.09,182.0,0.05288]
[1722095204204,20.0,182.07,182.0,0.05288]
[1722095204408,45.17,182.06,182.0,0.05288]
[1722095204720,5.4936,182.03,182.0,0.05288]
[1722095204901,5.4932,182.05,182.0,0.05288]
[1722095205222,36.44,182.09,182.0,0.05288]
[1722095205434,50.6623,182.08,182.0,0.05288]
[1722095205723,45.17,182.08,182.0,0.05288]
[1722095206325,50.6621,182.08,182.0,0.05288]
[1722095206500,45.17,182.08,182.0,0.05288]
[1722095206704,50.6623,182.08,182.0,0.05288]
[1722095207010,45.17,182.08,182.0,0.05288]
[1722095207321,50.6621,182.08,182.0,0.05288]
[1722095207526,20.0,182.13,182.02,26.05]
[1722095207707,5.4906,182.13,182.02,26.05]
[1722095208225,19.80392396,182.14,182.06,16.2095]
[1722095208430,8.61464332,182.14,182.06,16.2095]
[1722095208938,264.0887,182.2,182.08,26.05]
[1722095209102,5.4887,182.19,182.08,26.05]
[1722095209302,8.61555936,182.15,182.11,26.05]
[1722095209631,20.0,182.22,182.11,26.05]
[1722095209923,8.61487596,182.16,182.07,32.2699]
[1722095210121,5.4881,182.22,182.1,26.05]
[1722095210299,5.690685,182.23,182.1,26.05]
[1722095210504,8.6141323,182.19,182.13,26.05]
[1722095210740,8.6141323,182.19,182.16,26.05]
[1722095210913,20.0,182.31,182.17,6.2199]
[1722095211226,8.61132836,182.24,182.19,26.05]
[1722095211525,5.4863,182.27,182.19,26.05]
[1722095211726,8.6114701,182.24,182.19,26.05]
[1722095212112,5.68952793,182.3,182.17,6.2199]
[1722095212436,5.4882,182.21,182.14,16.2095]
[1722095212614,25.05218445,182.23,182.09,16.2095]
[1722095212799,5.4891,182.18,182.09,16.2095]
[1722095212996,5.4901,182.15,182.09,16.2095]
[1722095213202,26.05,182.23,182.09,16.2095]
[1722095213203,5.4911,182.12,182.09,16.2095]
[1722095213424,20.0,182.2,182.04,26.05]
[1722095213629,45.17,182.19,182.07,26.05]
[1722095213926,5.4879,182.22,182.1,26.05]
[1722095214127,0.17,182.21,182.1,26.05]
[1722095214438,0.17,182.2,182.08,16.2095]
[1722095214924,45.17,182.2,182.08,16.2095]
[1722095215134,50.6586,182.2,182.08,16.2095]
[1722095215334,5.489,182.19,182.08,16.2095]
[1722095215498,50.4891,182.18,182.08,16.2095]
[1722095215703,0.17,182.19,182.08,16.2095]
[1722095215923,20.0,182.23,182.09,7.31792855]
[1722095216139,20.292,182.26,182.09,7.3179576]
[1722095216140,6.5753,182.26,182.09,7.3179576]
[1722095216308,8.61465206,182.27,182.13,16.2095]
[1722095216508,14.10115206,182.27,182.13,16.2095]
[1722095216926,5.4867,182.26,182.13,16.2095]
[1722095217133,8.61465206,182.27,182.13,16.2095]
[1722095217134,8.61465206,182.27,182.16,29.37]
[1722095217734,8.61465206,182.27,182.21,6.2199]
[1722095217935,8.61465206,182.27,182.21,7.31719791]
[1722095218148,11.17976427,182.36,182.22,16.2095]
[1722095218311,8.60846433,182.3,182.22,16.2095]
[1722095218638,5.69596427,182.36,182.22,16.2095]
[1722095218834,11.17966427,182.36,182.22,16.2095]
[1722095219135,5.69596427,182.36,182.22,16.2095]
[1722095219312,5.4848,182.33,182.22,16.2095]
[1722095219514,5.4849,182.32,182.22,16.2095]
[1722095220236,5.4851,182.31,182.22,16.2095]
[1722095220436,42.13596427,182.36,182.22,16.2095]
[1722095220614,5.4851,182.32,182.22,16.2095]
[1722095220922,5.4861,182.28,182.22,16.2095]
[1722095221120,45.17,182.31,182.22,16.2095]
[1722095221334,5.4866,182.27,182.22,16.2095]
[1722095221507,5.4868,182.26,182.22,16.2095]
[1722095221707,5.4862,182.28,182.22,16.2095]
[1722095221928,0.17,182.27,182.14,16.2095]
[1722095222134,45.0,182.28,182.14,16.2095]
[1722095222324,8.61090709,182.29,182.16,29.37]
[1722095222646,8.61090709,182.29,182.16,30.46740852]
[1722095222932,8.61090709,182.29,182.2,29.37]
[1722095223229,8.61090709,182.29,182.16,29.37]
[1722095223728,8.61090709,182.29,182.2,29.37]
[1722095223938,11.17956427,182.36,182.21,22.5994]
[1722095224105,8.60930724,182.33,182.21,22.4294]
[1722095224521,8.60930724,182.33,182.21,23.52662088]
[1722095224725,5.69596427,182.36,182.24,29.37]
[1722095224925,26.5753,182.42,182.25,1.09704308]
[1722095225246,8.60778349,182.36,182.25,1.09704308]
[1722095225532,5.70576811,182.4,182.25,1.09704308]
[1722095225833,5.70576811,182.4,182.28,29.37]
[1722095225834,8.60664793,182.38,182.28,29.37]
[1722095226606,8.60664793,182.38,182.24,29.37]
[1722095226607,5.4835,182.37,182.24,29.37]